[Event "Early-Titled-Tuesday-Blitz-February-13-2024"]
[Site "Chess.com"]
[Date "2024.02.13"]
[Round "8"]
[White "HalfIsCrayfish"]
[Black "NM_Antelacus"]
[Result "1-0"]
[WhiteElo "2547"]
[BlackElo "2246"]
[TimeControl "180+1"]
[EndTime "9:32:39 PST"]
[Termination "HalfIsCrayfish won by resignation"]

1. d4 {[%clk 0:02:53.3]} 1... Nf6 {[%clk 0:02:59.4]} 2. c4 {[%clk 0:02:53.7]}
2... e6 {[%clk 0:02:59.8]} 3. Nf3 {[%clk 0:02:54.4]} 3... b6 {[%clk 0:02:59]} 4.
g3 {[%clk 0:02:52]} 4... Bb7 {[%clk 0:02:59.3]} 5. Bg2 {[%clk 0:02:52.4]} 5...
Bb4+ {[%clk 0:02:59.6]} 6. Bd2 {[%clk 0:02:52.1]} 6... Qe7 {[%clk 0:02:59.8]} 7.
O-O {[%clk 0:02:51.5]} 7... O-O {[%clk 0:02:59.6]} 8. Qc2 {[%clk 0:02:43.9]}
8... d5 {[%clk 0:02:54.4]} 9. Nc3 {[%clk 0:02:35.2]} 9... Bxc3 {[%clk
0:02:51.9]} 10. Bxc3 {[%clk 0:02:30.9]} 10... Nbd7 {[%clk 0:02:49.7]} 11. Ne5
{[%clk 0:02:26.9]} 11... c5 {[%clk 0:02:40.4]} 12. e3 {[%clk 0:02:16]} 12...
Rac8 {[%clk 0:02:39.7]} 13. Rfd1 {[%clk 0:02:11.9]} 13... Rfd8 {[%clk 0:02:37]}
14. Rac1 {[%clk 0:02:11.2]} 14... cxd4 {[%clk 0:02:33.7]} 15. exd4 {[%clk
0:02:10.7]} 15... Ne4 {[%clk 0:02:21.3]} 16. Bxe4 {[%clk 0:01:51]} 16... dxe4
{[%clk 0:02:20.4]} 17. Nxd7 {[%clk 0:01:51.2]} 17... Rxd7 {[%clk 0:02:17.8]} 18.
b3 {[%clk 0:01:51.3]} 18... Qg5 {[%clk 0:02:06]} 19. Re1 {[%clk 0:01:47.6]}
19... f5 {[%clk 0:02:00.6]} 20. Rcd1 {[%clk 0:01:46.2]} 20... Rcd8 {[%clk
0:01:56.9]} 21. Bb2 {[%clk 0:01:33]} 21... h6 {[%clk 0:01:54.4]} 22. h4 {[%clk
0:01:27.4]} 22... Qg4 {[%clk 0:01:50.8]} 23. Qe2 {[%clk 0:01:23.5]} 23... Qxe2
{[%clk 0:01:47.2]} 24. Rxe2 {[%clk 0:01:24.4]} 24... Kf7 {[%clk 0:01:45.8]} 25.
Red2 {[%clk 0:01:23.3]} 25... g5 {[%clk 0:01:42.9]} 26. h5 {[%clk 0:01:21]}
26... f4 {[%clk 0:01:32.3]} 27. Re2 {[%clk 0:01:18.5]} 27... Ke8 {[%clk
0:01:21.4]} 28. Rde1 {[%clk 0:01:17.6]} 28... Rf7 {[%clk 0:01:20.4]} 29. Rxe4
{[%clk 0:01:14.6]} 29... Bxe4 {[%clk 0:01:19.5]} 30. Rxe4 {[%clk 0:01:15.5]}
30... Kd7 {[%clk 0:01:18.1]} 31. g4 {[%clk 0:01:13.2]} 31... Re8 {[%clk
0:01:11.9]} 32. f3 {[%clk 0:01:12.9]} 32... Rff8 {[%clk 0:01:09.2]} 33. Kf2
{[%clk 0:01:12.3]} 33... Rc8 {[%clk 0:01:03.4]} 34. Re5 {[%clk 0:01:11.4]} 34...
a6 {[%clk 0:00:59.5]} 35. a4 {[%clk 0:01:10.7]} 35... Rb8 {[%clk 0:00:57.4]} 36.
d5 {[%clk 0:00:56.4]} 36... exd5 {[%clk 0:00:55.1]} 37. Rxd5+ {[%clk 0:00:57.3]}
37... Kc6 {[%clk 0:00:54.8]} 38. Bg7 {[%clk 0:00:47.1]} 38... Rfd8 {[%clk
0:00:35.6]} 39. Bxh6 {[%clk 0:00:42.4]} 39... Rxd5 {[%clk 0:00:34.3]} 40. cxd5+
{[%clk 0:00:43.3]} 40... Kxd5 {[%clk 0:00:34.4]} 41. Bxg5 {[%clk 0:00:44]} 41...
Rf8 {[%clk 0:00:33.5]} 42. Bh6 {[%clk 0:00:29.1]} 42... Rf6 {[%clk 0:00:24.2]}
43. g5 {[%clk 0:00:28.8]} 43... Rf5 {[%clk 0:00:23.8]} 44. g6 {[%clk 0:00:25.1]}
44... Rxh5 {[%clk 0:00:20.3]} 45. g7 {[%clk 0:00:25.4]} 45... Rh2+ {[%clk
0:00:16.2]} 46. Kg1 {[%clk 0:00:25.1]} 46... Rxh6 {[%clk 0:00:15.6]} 47. g8=Q+
{[%clk 0:00:25.2]} 47... Re6 {[%clk 0:00:12.8]} 48. Qa8+ {[%clk 0:00:23.9]}
48... Kd4 {[%clk 0:00:10.9]} 49. Qxa6 {[%clk 0:00:24.2]} 49... Rd6 {[%clk
0:00:09.4]} 50. Qc4+ {[%clk 0:00:23.8]} 50... Ke5 {[%clk 0:00:09]} 51. Qe4+
{[%clk 0:00:24.1]} 51... Kf6 {[%clk 0:00:09.5]} 52. Qxf4+ {[%clk 0:00:24.7]}
52... Ke6 {[%clk 0:00:10]} 53. Qxd6+ {[%clk 0:00:24.8]} 53... Kxd6 {[%clk
0:00:10.3]} 54. Kf2 {[%clk 0:00:25.6]} 1-0

[Event "Early-Titled-Tuesday-Blitz-February-13-2024"]
[Site "Chess.com"]
[Date "2024.02.13"]
[Round "8"]
[White "Chandradi"]
[Black "Leonid_Starozhilov"]
[Result "0-1"]
[WhiteElo "2513"]
[BlackElo "2726"]
[TimeControl "180+1"]
[EndTime "9:32:41 PST"]
[Termination "Leonid_Starozhilov won by resignation"]

1. c4 {[%clk 0:02:55.9]} 1... Nf6 {[%clk 0:03:00.2]} 2. g3 {[%clk 0:02:55.8]}
2... g6 {[%clk 0:03:00.5]} 3. Bg2 {[%clk 0:02:55.9]} 3... Bg7 {[%clk 0:03:01.4]}
4. Nc3 {[%clk 0:02:56.4]} 4... O-O {[%clk 0:03:02]} 5. Nf3 {[%clk 0:02:57]} 5...
d6 {[%clk 0:03:02.3]} 6. O-O {[%clk 0:02:57.3]} 6... c6 {[%clk 0:03:02.9]} 7.
Rb1 {[%clk 0:02:55.5]} 7... a6 {[%clk 0:03:02.9]} 8. b4 {[%clk 0:02:54.2]} 8...
d5 {[%clk 0:03:02.6]} 9. cxd5 {[%clk 0:02:53.6]} 9... cxd5 {[%clk 0:03:02.5]}
10. d3 {[%clk 0:02:50.4]} 10... Nc6 {[%clk 0:02:56.6]} 11. a3 {[%clk 0:02:43.6]}
11... Bg4 {[%clk 0:02:56.2]} 12. h3 {[%clk 0:02:42.8]} 12... Bxf3 {[%clk
0:02:56.6]} 13. Bxf3 {[%clk 0:02:42.7]} 13... e6 {[%clk 0:02:55.1]} 14. Bb2
{[%clk 0:02:42.1]} 14... Qd7 {[%clk 0:02:45.5]} 15. Na4 {[%clk 0:02:33.6]} 15...
Qd6 {[%clk 0:02:42.2]} 16. e3 {[%clk 0:02:24.9]} 16... Nd7 {[%clk 0:02:21.9]}
17. Bxg7 {[%clk 0:02:15.5]} 17... Kxg7 {[%clk 0:02:22.8]} 18. Qd2 {[%clk
0:02:15.5]} 18... Rfc8 {[%clk 0:02:15.9]} 19. Rfc1 {[%clk 0:02:12.6]} 19... Nce5
{[%clk 0:01:55.9]} 20. Bg2 {[%clk 0:02:11.1]} 20... b5 {[%clk 0:01:35.3]} 21.
Nb2 {[%clk 0:02:01.5]} 21... Rab8 {[%clk 0:01:26.8]} 22. Rc2 {[%clk 0:01:56.3]}
22... Nb6 {[%clk 0:01:11.7]} 23. Rbc1 {[%clk 0:01:48.8]} 23... d4 {[%clk
0:00:54.5]} 24. e4 {[%clk 0:01:28.5]} 24... Ned7 {[%clk 0:00:53.6]} 25. f4
{[%clk 0:01:26.6]} 25... e5 {[%clk 0:00:52.8]} 26. Nd1 {[%clk 0:01:19.1]} 26...
Rxc2 {[%clk 0:00:50.2]} 27. Rxc2 {[%clk 0:01:18.8]} 27... h5 {[%clk 0:00:40.7]}
28. Nf2 {[%clk 0:01:09.4]} 28... h4 {[%clk 0:00:35.5]} 29. fxe5 {[%clk
0:01:08.1]} 29... Nxe5 {[%clk 0:00:34.3]} 30. gxh4 {[%clk 0:01:08.1]} 30... Rh8
{[%clk 0:00:33.4]} 31. Qg5 {[%clk 0:01:02.1]} 31... Nbd7 {[%clk 0:00:24.8]} 32.
Qg3 {[%clk 0:00:57.5]} 32... Qe7 {[%clk 0:00:15.8]} 33. Rc7 {[%clk 0:00:51.2]}
33... Rxh4 {[%clk 0:00:10]} 34. Ng4 {[%clk 0:00:47]} 34... Rh8 {[%clk
0:00:05.6]} 35. Ra7 {[%clk 0:00:34.5]} 35... Qd6 {[%clk 0:00:05.3]} 36. Bf1
{[%clk 0:00:24.5]} 36... Qb6 {[%clk 0:00:05.4]} 37. Rxd7 {[%clk 0:00:08.5]}
37... Nxd7 {[%clk 0:00:05.5]} 38. Qf4 {[%clk 0:00:08.9]} 38... Qe6 {[%clk
0:00:04.8]} 39. e5 {[%clk 0:00:08.7]} 39... Re8 {[%clk 0:00:04.5]} 40. Qxd4
{[%clk 0:00:09]} 40... Nxe5 {[%clk 0:00:04.6]} 41. Bg2 {[%clk 0:00:09]} 41...
Kf8 {[%clk 0:00:03]} 42. Nf2 {[%clk 0:00:08.9]} 42... Qf6 {[%clk 0:00:02.7]} 43.
Be4 {[%clk 0:00:08.6]} 43... Nf3+ {[%clk 0:00:02.7]} 44. Bxf3 {[%clk 0:00:08.8]}
44... Qxd4 {[%clk 0:00:03.6]} 45. Be4 {[%clk 0:00:05.5]} 45... Rxe4 {[%clk
0:00:04.1]} 46. dxe4 {[%clk 0:00:05.3]} 46... Qa1+ {[%clk 0:00:05]} 47. Kg2
{[%clk 0:00:05.5]} 47... Qxa3 {[%clk 0:00:05.9]} 48. Nd3 {[%clk 0:00:05]} 48...
Qxd3 {[%clk 0:00:06.2]} 0-1

[Event "Early-Titled-Tuesday-Blitz-February-13-2024"]
[Site "Chess.com"]
[Date "2024.02.13"]
[Round "8"]
[White "Gzucaritas"]
[Black "Teidi96"]
[Result "0-1"]
[WhiteElo "2058"]
[BlackElo "2278"]
[TimeControl "180+1"]
[EndTime "9:32:41 PST"]
[Termination "Teidi96 won on time"]

1. e4 {[%clk 0:03:00.9]} 1... c5 {[%clk 0:02:57.2]} 2. Nf3 {[%clk 0:03:00.5]}
2... g6 {[%clk 0:02:57.3]} 3. d4 {[%clk 0:02:56]} 3... cxd4 {[%clk 0:02:58.2]}
4. Nxd4 {[%clk 0:02:56]} 4... Nc6 {[%clk 0:02:58.8]} 5. Nc3 {[%clk 0:02:55.7]}
5... Bg7 {[%clk 0:02:59.2]} 6. Nf3 {[%clk 0:02:55.6]} 6... Nf6 {[%clk
0:02:59.8]} 7. Bc4 {[%clk 0:02:53.9]} 7... O-O {[%clk 0:02:59.3]} 8. O-O {[%clk
0:02:51.2]} 8... d6 {[%clk 0:03:00]} 9. h3 {[%clk 0:02:50.6]} 9... a6 {[%clk
0:02:58.7]} 10. Re1 {[%clk 0:02:49.2]} 10... b5 {[%clk 0:02:57.3]} 11. Bb3
{[%clk 0:02:49.1]} 11... Bb7 {[%clk 0:02:57.9]} 12. Nd5 {[%clk 0:02:48.9]} 12...
Nxd5 {[%clk 0:02:56.8]} 13. exd5 {[%clk 0:02:45.3]} 13... Ne5 {[%clk 0:02:56.8]}
14. c3 {[%clk 0:02:38.1]} 14... Rc8 {[%clk 0:02:55.1]} 15. Bg5 {[%clk
0:02:36.3]} 15... Re8 {[%clk 0:02:54.1]} 16. Qd2 {[%clk 0:02:30.4]} 16... Nxf3+
{[%clk 0:02:53.3]} 17. gxf3 {[%clk 0:02:29.6]} 17... Qd7 {[%clk 0:02:52.6]} 18.
Kg2 {[%clk 0:02:23.7]} 18... Rc5 {[%clk 0:02:46.7]} 19. Rad1 {[%clk 0:02:21]}
19... Bc8 {[%clk 0:02:45.9]} 20. Rh1 {[%clk 0:02:08.3]} 20... a5 {[%clk
0:02:44.9]} 21. h4 {[%clk 0:02:03.2]} 21... a4 {[%clk 0:02:44.9]} 22. Bc2 {[%clk
0:02:02.6]} 22... Bb7 {[%clk 0:02:43.1]} 23. Be4 {[%clk 0:01:44.3]} 23... f5
{[%clk 0:02:42.6]} 24. Bc2 {[%clk 0:01:28.2]} 24... Rxd5 {[%clk 0:02:42.6]} 25.
Qe2 {[%clk 0:01:27.2]} 25... e5 {[%clk 0:02:38]} 26. h5 {[%clk 0:01:19]} 26...
Rxd1 {[%clk 0:02:24.8]} 27. Qxd1 {[%clk 0:01:11.4]} 27... Qc6 {[%clk 0:02:18.8]}
28. hxg6 {[%clk 0:00:56.3]} 28... hxg6 {[%clk 0:02:19.7]} 29. b3 {[%clk
0:00:50.9]} 29... axb3 {[%clk 0:02:16.5]} 30. Bxb3+ {[%clk 0:00:49.9]} 30... d5
{[%clk 0:02:16.7]} 31. Bh6 {[%clk 0:00:32.8]} 31... Kf7 {[%clk 0:01:48.7]} 32.
Bxg7 {[%clk 0:00:29.3]} 32... Kxg7 {[%clk 0:01:49.6]} 33. Rh3 {[%clk 0:00:29.2]}
33... Rh8 {[%clk 0:01:48]} 34. Rxh8 {[%clk 0:00:22.6]} 34... Kxh8 {[%clk
0:01:48.9]} 35. Qh1+ {[%clk 0:00:22.1]} 35... Kg7 {[%clk 0:01:48.9]} 36. Qh4
{[%clk 0:00:21.2]} 36... Qd6 {[%clk 0:01:39.3]} 37. a4 {[%clk 0:00:17.4]} 37...
bxa4 {[%clk 0:01:38.7]} 38. Bxa4 {[%clk 0:00:17.5]} 38... d4 {[%clk 0:01:33.8]}
39. cxd4 {[%clk 0:00:16.8]} 39... exd4 {[%clk 0:01:33.7]} 40. Bb3 {[%clk
0:00:10.7]} 40... d3 {[%clk 0:01:29.2]} 41. Qc4 {[%clk 0:00:10.6]} 41... Qd7
{[%clk 0:00:31.7]} 42. Qc3+ {[%clk 0:00:09.3]} 42... Kh7 {[%clk 0:00:25.1]} 43.
Qd2 {[%clk 0:00:06.5]} 43... Qd4 {[%clk 0:00:14.6]} 44. Bc2 {[%clk 0:00:03.1]}
44... Qg4+ {[%clk 0:00:12.8]} 45. Kf1 {[%clk 0:00:02.1]} 45... Qh3+ {[%clk
0:00:11.6]} 46. Ke1 {[%clk 0:00:01]} 46... Bxf3 {[%clk 0:00:10.1]} 0-1

[Event "Early-Titled-Tuesday-Blitz-February-13-2024"]
[Site "Chess.com"]
[Date "2024.02.13"]
[Round "8"]
[White "azikom"]
[Black "HATilay"]
[Result "0-1"]
[WhiteElo "2723"]
[BlackElo "2544"]
[TimeControl "180+1"]
[EndTime "9:32:45 PST"]
[Termination "HATilay won on time"]

1. c4 {[%clk 0:03:00.8]} 1... e5 {[%clk 0:02:59.7]} 2. Nc3 {[%clk 0:02:59.9]}
2... Bb4 {[%clk 0:03:00]} 3. Qc2 {[%clk 0:02:58.3]} 3... Bxc3 {[%clk 0:02:54.5]}
4. Qxc3 {[%clk 0:02:57.5]} 4... Nc6 {[%clk 0:02:53.7]} 5. g3 {[%clk 0:02:56.8]}
5... Nf6 {[%clk 0:02:49.7]} 6. Bg2 {[%clk 0:02:57.2]} 6... Qe7 {[%clk
0:02:44.9]} 7. d3 {[%clk 0:02:55.7]} 7... O-O {[%clk 0:02:41.9]} 8. e4 {[%clk
0:02:37.6]} 8... a6 {[%clk 0:02:08.7]} 9. Ne2 {[%clk 0:02:32.3]} 9... b5 {[%clk
0:02:06.4]} 10. b3 {[%clk 0:02:31.9]} 10... Qb4 {[%clk 0:01:47.4]} 11. Bd2
{[%clk 0:02:23.6]} 11... Qxc3 {[%clk 0:01:46.7]} 12. Bxc3 {[%clk 0:02:23.6]}
12... b4 {[%clk 0:01:47.1]} 13. Bb2 {[%clk 0:02:22.3]} 13... d6 {[%clk
0:01:45.9]} 14. f4 {[%clk 0:02:21.5]} 14... Nd7 {[%clk 0:01:44.8]} 15. Kd2
{[%clk 0:02:18.9]} 15... f6 {[%clk 0:01:44.3]} 16. d4 {[%clk 0:02:15.5]} 16...
a5 {[%clk 0:01:42]} 17. a4 {[%clk 0:01:56.7]} 17... Nxd4 {[%clk 0:01:20.4]} 18.
Nxd4 {[%clk 0:01:36.5]} 18... exd4 {[%clk 0:01:20.5]} 19. Bxd4 {[%clk
0:01:36.8]} 19... Bb7 {[%clk 0:01:17.6]} 20. Rhe1 {[%clk 0:01:32.4]} 20... Rfe8
{[%clk 0:01:11.9]} 21. Re2 {[%clk 0:01:25.9]} 21... Kf7 {[%clk 0:01:12.1]} 22.
Rae1 {[%clk 0:01:24.4]} 22... Rad8 {[%clk 0:01:12.7]} 23. Kc2 {[%clk 0:01:20.3]}
23... Ba8 {[%clk 0:00:40.6]} 24. Bh3 {[%clk 0:01:09.9]} 24... Re7 {[%clk
0:00:37.5]} 25. Bf5 {[%clk 0:00:51.6]} 25... g6 {[%clk 0:00:33]} 26. Bh3 {[%clk
0:00:50.3]} 26... Rde8 {[%clk 0:00:33.3]} 27. Kd3 {[%clk 0:00:40.6]} 27... Nc5+
{[%clk 0:00:16]} 28. Bxc5 {[%clk 0:00:40.3]} 28... dxc5 {[%clk 0:00:16.6]} 29.
e5 {[%clk 0:00:40.1]} 29... fxe5 {[%clk 0:00:10]} 30. Rxe5 {[%clk 0:00:37.7]}
30... Rxe5 {[%clk 0:00:10]} 31. fxe5 {[%clk 0:00:33.5]} 31... Rd8+ {[%clk
0:00:09.9]} 32. Ke3 {[%clk 0:00:30.6]} 32... Ke7 {[%clk 0:00:10.2]} 33. Rf1
{[%clk 0:00:20.5]} 33... Rd4 {[%clk 0:00:09.8]} 34. Rf4 {[%clk 0:00:20]} 34...
Rd1 {[%clk 0:00:08.3]} 35. Rf6 {[%clk 0:00:11.2]} 35... Rb1 {[%clk 0:00:05.6]}
36. Ra6 {[%clk 0:00:08.9]} 36... Rxb3+ {[%clk 0:00:06.2]} 37. Kd2 {[%clk
0:00:08.8]} 37... Be4 {[%clk 0:00:05.6]} 38. Rxa5 {[%clk 0:00:08.7]} 38... Rd3+
{[%clk 0:00:03.6]} 39. Ke2 {[%clk 0:00:08.4]} 39... b3 {[%clk 0:00:02.1]} 40.
Bg2 {[%clk 0:00:05.5]} 40... Bf5 {[%clk 0:00:01.1]} 41. Rb5 {[%clk 0:00:02.7]}
41... Rc3 {[%clk 0:00:01.2]} 0-1

[Event "Early-Titled-Tuesday-Blitz-February-13-2024"]
[Site "Chess.com"]
[Date "2024.02.13"]
[Round "8"]
[White "JiiHart"]
[Black "Al_Shima"]
[Result "0-1"]
[WhiteElo "2157"]
[BlackElo "2372"]
[TimeControl "180+1"]
[EndTime "9:32:47 PST"]
[Termination "Al_Shima won by checkmate"]

1. e4 {[%clk 0:03:00.9]} 1... c5 {[%clk 0:02:59.1]} 2. c3 {[%clk 0:03:00.6]}
2... Nf6 {[%clk 0:02:58.3]} 3. e5 {[%clk 0:03:00.8]} 3... Nd5 {[%clk 0:02:58.9]}
4. d4 {[%clk 0:03:01.1]} 4... cxd4 {[%clk 0:02:59.8]} 5. Nf3 {[%clk 0:03:01.4]}
5... d6 {[%clk 0:02:56.7]} 6. cxd4 {[%clk 0:03:01.4]} 6... Nc6 {[%clk
0:02:56.7]} 7. Nc3 {[%clk 0:03:01.4]} 7... Nxc3 {[%clk 0:02:55.6]} 8. bxc3
{[%clk 0:03:01.5]} 8... dxe5 {[%clk 0:02:55.6]} 9. d5 {[%clk 0:03:01.5]} 9... e4
{[%clk 0:02:50]} 10. dxc6 {[%clk 0:03:01.3]} 10... Qxd1+ {[%clk 0:02:43]} 11.
Kxd1 {[%clk 0:03:01]} 11... exf3 {[%clk 0:02:43.9]} 12. Bb5 {[%clk 0:03:00.6]}
12... Kd8 {[%clk 0:02:15.8]} 13. Bf4 {[%clk 0:02:59.9]} 13... e5 {[%clk
0:02:15]} 14. Bxe5 {[%clk 0:02:58.6]} 14... Bc5 {[%clk 0:01:29.1]} 15. c7+
{[%clk 0:02:17.8]} 15... Ke7 {[%clk 0:01:27.4]} 16. gxf3 {[%clk 0:02:15.1]}
16... f6 {[%clk 0:01:21.9]} 17. Bg3 {[%clk 0:02:08]} 17... Be6 {[%clk
0:01:15.2]} 18. Re1 {[%clk 0:02:00.2]} 18... Kf7 {[%clk 0:01:11.4]} 19. Kc2
{[%clk 0:01:38.7]} 19... a6 {[%clk 0:00:55.2]} 20. Bd3 {[%clk 0:01:28.9]} 20...
Rhc8 {[%clk 0:00:35.8]} 21. Be4 {[%clk 0:01:24]} 21... Ra7 {[%clk 0:00:35.1]}
22. Rab1 {[%clk 0:01:19.5]} 22... b5 {[%clk 0:00:34.7]} 23. a4 {[%clk
0:01:05.8]} 23... b4 {[%clk 0:00:19.6]} 24. cxb4 {[%clk 0:01:03]} 24... Bb6
{[%clk 0:00:20.1]} 25. Bxh7 {[%clk 0:00:45.3]} 25... Bxc7 {[%clk 0:00:20.5]} 26.
Kb2 {[%clk 0:00:23]} 26... Rb7 {[%clk 0:00:06.3]} 27. b5 {[%clk 0:00:19.1]}
27... axb5 {[%clk 0:00:05.4]} 28. a5 {[%clk 0:00:19]} 28... Bxa5 {[%clk
0:00:04.1]} 29. Bg6+ {[%clk 0:00:19.1]} 29... Kxg6 {[%clk 0:00:04.3]} 30. Rxe6
{[%clk 0:00:19.3]} 30... Bc3+ {[%clk 0:00:04.5]} 31. Kb3 {[%clk 0:00:18.9]}
31... b4 {[%clk 0:00:04.7]} 32. Rg1 {[%clk 0:00:17.5]} 32... Kf7 {[%clk
0:00:04.6]} 33. Ra6 {[%clk 0:00:14.7]} 33... Rd8 {[%clk 0:00:04.7]} 34. Bf4
{[%clk 0:00:12.8]} 34... Rd3 {[%clk 0:00:03.6]} 35. Kc4 {[%clk 0:00:10.6]} 35...
Rxf3 {[%clk 0:00:03]} 36. Be3 {[%clk 0:00:10.2]} 36... Rc7+ {[%clk 0:00:03]} 37.
Kb3 {[%clk 0:00:09.4]} 37... Rd7 {[%clk 0:00:02.3]} 38. Rb6 {[%clk 0:00:08.3]}
38... Bd4 {[%clk 0:00:02.5]} 39. Kxb4 {[%clk 0:00:06.3]} 39... Bxb6 {[%clk
0:00:02.4]} 40. Bxb6 {[%clk 0:00:05.4]} 40... Rb7 {[%clk 0:00:02.8]} 41. Kc5
{[%clk 0:00:05.3]} 41... Rc3+ {[%clk 0:00:03]} 42. Kb4 {[%clk 0:00:02.7]} 42...
Rc6 {[%clk 0:00:03.1]} 43. Rxg7+ {[%clk 0:00:01.6]} 43... Kxg7 {[%clk
0:00:03.4]} 44. Kb5 {[%clk 0:00:01.8]} 44... Rbxb6+ {[%clk 0:00:02.9]} 45. Ka5
{[%clk 0:00:01.7]} 45... Rb8 {[%clk 0:00:03.3]} 46. Ka4 {[%clk 0:00:01.7]} 46...
Rc1 {[%clk 0:00:03.8]} 47. Ka5 {[%clk 0:00:01.6]} 47... Ra1# {[%clk 0:00:04.7]}
0-1

[Event "Early-Titled-Tuesday-Blitz-February-13-2024"]
[Site "Chess.com"]
[Date "2024.02.13"]
[Round "8"]
[White "KNVB"]
[Black "Predator0608"]
[Result "1-0"]
[WhiteElo "2872"]
[BlackElo "2578"]
[TimeControl "180+1"]
[EndTime "9:32:49 PST"]
[Termination "KNVB won by resignation"]

1. d4 {[%clk 0:03:00.9]} 1... Nf6 {[%clk 0:03:00.3]} 2. Bf4 {[%clk 0:03:00.5]}
2... g6 {[%clk 0:02:57.9]} 3. e3 {[%clk 0:03:00.4]} 3... Bg7 {[%clk 0:02:58.5]}
4. h3 {[%clk 0:03:00.4]} 4... d6 {[%clk 0:02:58]} 5. c3 {[%clk 0:03:01]} 5...
O-O {[%clk 0:02:57]} 6. Nf3 {[%clk 0:03:01.7]} 6... Nbd7 {[%clk 0:02:52]} 7. Be2
{[%clk 0:03:01.6]} 7... Nh5 {[%clk 0:02:49.4]} 8. Bh2 {[%clk 0:03:01.5]} 8... e5
{[%clk 0:02:50.3]} 9. a4 {[%clk 0:03:01.3]} 9... f5 {[%clk 0:02:37.5]} 10. a5
{[%clk 0:03:00.7]} 10... e4 {[%clk 0:02:17.1]} 11. Nfd2 {[%clk 0:02:59.5]} 11...
Nhf6 {[%clk 0:02:17.4]} 12. a6 {[%clk 0:02:59.2]} 12... bxa6 {[%clk 0:02:15.4]}
13. Bxa6 {[%clk 0:02:57.9]} 13... Nb6 {[%clk 0:02:02.9]} 14. Bxc8 {[%clk
0:01:40.8]} 14... Qxc8 {[%clk 0:02:02.5]} 15. Ra5 {[%clk 0:01:41.3]} 15... Qd7
{[%clk 0:01:47.6]} 16. Qb3+ {[%clk 0:01:31.1]} 16... Kh8 {[%clk 0:01:44.7]} 17.
Qa2 {[%clk 0:01:27.2]} 17... c6 {[%clk 0:01:34.5]} 18. Na3 {[%clk 0:01:18.9]}
18... Nfd5 {[%clk 0:01:31.1]} 19. Nac4 {[%clk 0:01:05.2]} 19... Nxc4 {[%clk
0:01:21.8]} 20. Nxc4 {[%clk 0:00:55]} 20... f4 {[%clk 0:01:18.5]} 21. Bxf4
{[%clk 0:00:55.3]} 21... Nxf4 {[%clk 0:01:17.8]} 22. exf4 {[%clk 0:00:55.7]}
22... Qe6 {[%clk 0:01:03.7]} 23. Ne3 {[%clk 0:00:06.1]} 23... Qxa2 {[%clk
0:00:30.9]} 24. Rxa2 {[%clk 0:00:07]} 24... Rxf4 {[%clk 0:00:31.5]} 25. Ra6
{[%clk 0:00:05.8]} 25... Rb8 {[%clk 0:00:20]} 26. Nd1 {[%clk 0:00:06]} 26... c5
{[%clk 0:00:18.2]} 27. dxc5 {[%clk 0:00:04.8]} 27... dxc5 {[%clk 0:00:19.1]} 28.
Rxa7 {[%clk 0:00:03.8]} 28... Rd8 {[%clk 0:00:17.1]} 29. Rc7 {[%clk 0:00:02.5]}
29... Rf5 {[%clk 0:00:16.9]} 30. O-O {[%clk 0:00:02.4]} 30... Rg5 {[%clk
0:00:17.1]} 31. g3 {[%clk 0:00:02.1]} 31... Be5 {[%clk 0:00:16.4]} 32. Re7
{[%clk 0:00:01.9]} 32... Rd2 {[%clk 0:00:16.7]} 33. Kh1 {[%clk 0:00:01.7]} 33...
Bd6 {[%clk 0:00:14.5]} 34. Re6 {[%clk 0:00:01.8]} 34... Rh5 {[%clk 0:00:13.3]}
35. h4 {[%clk 0:00:02]} 35... g5 {[%clk 0:00:13]} 36. Rxe4 {[%clk 0:00:02.5]}
36... Kg7 {[%clk 0:00:11.9]} 37. Kg1 {[%clk 0:00:02.4]} 37... Kf6 {[%clk
0:00:12.3]} 38. hxg5+ {[%clk 0:00:02.4]} 38... Kxg5 {[%clk 0:00:12.1]} 39. Kg2
{[%clk 0:00:02.1]} 39... Kf5 {[%clk 0:00:12.3]} 40. Rfe1 {[%clk 0:00:02.6]}
40... Rg5 {[%clk 0:00:08.1]} 41. R4e2 {[%clk 0:00:02.7]} 41... Rd5 {[%clk
0:00:07.3]} 42. Ne3+ {[%clk 0:00:02.8]} 42... Ke6 {[%clk 0:00:07.8]} 43. Nxd5+
{[%clk 0:00:03.4]} 43... Kxd5 {[%clk 0:00:08.4]} 44. Re4 {[%clk 0:00:04]} 44...
c4 {[%clk 0:00:08.7]} 45. Rd4+ {[%clk 0:00:04.3]} 45... Kc5 {[%clk 0:00:08.7]}
46. Ree4 {[%clk 0:00:05.2]} 46... Be5 {[%clk 0:00:08.4]} 47. Rxc4+ {[%clk
0:00:05.8]} 47... Kd5 {[%clk 0:00:09.3]} 48. Ra4 {[%clk 0:00:05.9]} 48... Ke6
{[%clk 0:00:08.4]} 49. f4 {[%clk 0:00:04.7]} 1-0